bitfinex/quotes_SOLUSD_20250522
["timestamp","ask_amount","ask_price","bid_price","bid_amount"]
[1747898191037,19.72985167,177.4,177.35,14.21771303]
[1747898191232,33.9475647,177.4,177.35,14.21771303]
[1747898192146,14.21771303,177.39,177.34,14.21771303]
[1747898192352,19.72985167,177.4,177.34,14.21771303]
[1747898192547,19.72985167,177.4,177.35,14.21771303]
[1747898192748,33.9475647,177.4,177.35,14.21771303]
[1747898192933,14.21771303,177.39,177.34,14.21771303]
[1747898193136,14.21771303,177.36,177.28,41.9]
[1747898193353,14.21771303,177.35,177.27,41.88]
[1747898193542,14.21771303,177.34,177.29,14.21771303]
[1747898193854,19.7349873,177.35,177.31,14.21771303]
[1747898194055,5.6385678,177.35,177.32,14.21771303]
[1747898195480,19.7349873,177.35,177.27,67.88]
[1747898195777,19.7349873,177.35,177.3,14.21771303]
[1747898196070,19.7349873,177.35,177.31,14.21771303]
[1747898196437,33.95270033,177.35,177.3,14.21771303]
[1747898198455,19.7349873,177.35,177.27,67.88]
[1747898198660,33.95270033,177.35,177.3,14.21771303]
[1747898199453,19.7349873,177.35,177.31,14.21771303]
[1747898200038,14.0964195,177.35,177.32,14.21771303]
[1747898200734,5.63824988,177.36,177.27,41.88]
[1747898200943,5.63824988,177.36,177.33,14.21771303]
[1747898201453,5.63824988,177.36,177.34,14.21771303]
[1747898202262,14.09361863,177.39,177.35,14.21771303]
[1747898202439,14.09361863,177.39,177.36,14.21771303]
[1747898206960,5.63697857,177.4,177.36,14.21771303]
[1747898207457,5.63697857,177.4,177.37,14.21771303]
[1747898208255,19.72831294,177.41,177.37,14.21771303]
[1747898209963,33.94602597,177.41,177.33,41.88]
[1747898210142,33.94602597,177.41,177.36,14.21771303]
[1747898210342,5.63729635,177.39,177.35,14.21771303]
[1747898210565,19.73053723,177.39,177.35,14.21771303]
[1747898210764,19.73053723,177.39,177.33,41.88]
[1747898210952,19.73053723,177.39,177.35,14.21771303]
[1747898211162,19.73053723,177.39,177.36,14.21771303]
[1747898211768,5.63729635,177.39,177.36,14.21771303]
[1747898212147,7.6244,177.42,177.38,14.21771303]
[1747898212347,6.8150347,177.43,177.35,26.0]
[1747898212348,12.45110568,177.43,177.41,14.21771303]
[1747898212650,12.45110568,177.43,177.42,14.21771303]
[1747898212854,6.8150347,177.43,177.42,14.21771303]
[1747898213844,6.8150347,177.43,177.4,69.94]
[1747898214053,6.8150347,177.43,177.42,14.21771303]
[1747898214449,12.45106017,177.43,177.42,14.21771303]
[1747898214666,12.45106017,177.43,177.41,14.21771303]
[1747898214947,12.45106017,177.43,177.39,43.94]
[1747898215154,6.8150347,177.43,177.42,14.21771303]
[1747898218262,6.8150347,177.43,177.42,48.03771303]
[1747898218976,6.8150347,177.43,177.34,217.1573]
[1747898219144,6.8150347,177.43,177.42,14.21771303]
[1747898219677,6.8150347,177.43,177.38,77.74]
[1747898220045,12.45106103,177.43,177.42,14.21771303]
[1747898220277,12.45106103,177.43,177.41,14.21771303]
[1747898220575,14.21771303,177.42,177.35,43.92]
[1747898220775,14.21771303,177.4,177.35,58.13771303]
[1747898220980,26.54112471,177.43,177.38,14.21771303]
[1747898221150,26.54112471,177.43,177.35,43.92]
[1747898221151,14.21771303,177.42,177.35,43.92]
[1747898221350,14.21771303,177.42,177.37,14.21771303]
[1747898221654,14.21771303,177.42,177.35,43.92]
[1747898221873,14.21771303,177.41,177.36,14.21771303]
[1747898222070,26.54112471,177.43,177.38,14.21771303]
[1747898222277,40.75883774,177.43,177.38,14.21771303]
[1747898222453,26.54112471,177.43,177.37,14.21771303]
[1747898222653,40.75883774,177.43,177.37,14.21771303]
[1747898222889,14.21771303,177.41,177.36,14.21771303]
[1747898223584,14.21771303,177.42,177.37,14.21771303]
[1747898224170,40.75883774,177.43,177.38,14.21771303]
[1747898224679,12.45106103,177.43,177.35,5.63853232]
[1747898224881,12.45106103,177.43,177.39,14.21771303]
[1747898225049,12.45106103,177.43,177.4,14.21771303]
[1747898225376,12.45125191,177.43,177.41,14.21771303]
[1747898225766,12.45125191,177.43,177.4,14.21771303]
[1747898225968,6.8150347,177.43,177.42,14.21771303]
[1747898227156,6.8150347,177.43,177.41,33.82]
[1747898227157,6.8150347,177.43,177.41,39.4566394]
[1747898227364,6.8150347,177.43,177.42,14.21771303]
[1747898227788,6.8150347,177.43,177.42,66.98136021]
[1747898228089,1.6315,177.54,177.42,66.98136021]
[1747898228090,1.6315,177.54,177.46,18.64964886]
[1747898228393,5.63158191,177.57,177.53,22.18954978]
[1747898228576,5.63094768,177.59,177.55,22.18954978]
[1747898228777,5.63094768,177.59,177.48,31.63421711]
[1747898228778,5.63094768,177.59,177.49,18.64964886]
[1747898228969,5.63094768,177.59,177.55,22.18954978]
[1747898229189,5.63094768,177.59,177.49,18.64964886]
[1747898229505,5.63094768,177.59,177.52,26.0]
[1747898229706,5.63094768,177.59,177.56,22.18954978]
[1747898229914,5.63094768,177.59,177.58,22.18954978]
[1747898230102,5.63094768,177.59,177.52,59.82]
[1747898230279,19.7083169,177.59,177.54,22.18954978]
[1747898230478,19.7083169,177.59,177.55,22.18954978]
[1747898230678,5.63094768,177.59,177.56,22.18954978]
[1747898230904,5.63094768,177.59,177.58,22.18954978]
[1747898231080,5.63094768,177.59,177.53,26.0]
[1747898231279,5.63094768,177.59,177.57,22.18954978]
[1747898231479,19.70514745,177.62,177.58,22.18954978]
[1747898232000,19.70514745,177.62,177.53,26.0]
[1747898232205,19.70514745,177.62,177.58,22.18954978]
[1747898232702,41.89469723,177.62,177.52,18.64964886]
[1747898232933,41.89469723,177.62,177.57,22.18954978]
[1747898233084,19.70514745,177.62,177.58,22.18954978]
[1747898233284,41.89469723,177.62,177.57,22.18954978]
[1747898233485,19.70514745,177.62,177.52,18.64964886]
[1747898233688,19.70514745,177.62,177.58,22.18954978]
[1747898233892,5.62999662,177.62,177.53,0.14216157]
[1747898234108,5.62809545,177.68,177.61,22.18954978]
[1747898234330,27.81764523,177.68,177.58,45.6]
[1747898234606,45.698566,177.68,177.59,22.18954978]
[1747898235001,22.18954978,177.63,177.58,22.18954978]
[1747898235191,22.18954978,177.64,177.59,22.18954978]
[1747898235588,5.62904587,177.65,177.61,22.18954978]
[1747898235787,22.18954978,177.62,177.56,22.18954978]
[1747898235981,5.62904587,177.65,177.56,22.18954978]
[1747898236181,19.70166056,177.65,177.57,26.0]
[1747898236512,22.18954978,177.62,177.57,48.18954978]
[1747898236708,19.70166056,177.65,177.57,48.18954978]
[1747898236906,22.18954978,177.62,177.57,48.18954978]
[1747898237113,22.18954978,177.63,177.58,22.18954978]
[1747898237289,5.62904587,177.65,177.6,22.18954978]
[1747898237616,22.18954978,177.64,177.58,18.64964886]
[1747898237932,22.18954978,177.62,177.57,26.0]
[1747898238089,5.62904587,177.65,177.57,48.18954978]
[1747898238291,22.18954978,177.6,177.58,26.0]
[1747898239228,22.18954978,177.59,177.55,79.38]
[1747898239528,19.70166056,177.65,177.55,105.38]
[1747898239689,22.18954978,177.58,177.55,105.38]
[1747898239887,22.18954978,177.56,177.52,5.47874848]
[1747898240087,22.18954978,177.53,177.52,5.47874848]
[1747898240553,1.5476,177.6,177.52,5.47874848]
[1747898240745,22.18954978,177.53,177.52,5.47874848]
[1747898241339,22.18954978,177.54,177.52,5.47874848]
[1747898241537,5.63094768,177.59,177.52,5.47874848]
[1747898241767,5.63094768,177.59,177.52,53.66829826]
[1747898242061,22.18954978,177.54,177.52,77.05874848]
[1747898242244,22.18954978,177.53,177.52,77.05874848]
[1747898243058,22.18954978,177.53,177.52,51.05874848]
[1747898244363,5.63266157,177.54,177.52,51.05874848]
[1747898244541,22.18954978,177.53,177.52,51.05874848]
[1747898244853,5.63158191,177.57,177.52,51.05874848]
[1747898245038,19.71053668,177.57,177.52,51.05874848]
[1747898245472,22.18954978,177.53,177.52,5.47874848]
[1747898245752,5.63316809,177.52,177.46,45.58]
[1747898245935,22.18954978,177.47,177.46,45.58]
[1747898246736,22.19337633,177.47,177.46,45.58]
[1747898247858,5.63473468,177.48,177.46,45.58]
[1747898248064,14.08292023,177.52,177.46,45.58]
[1747898248065,5.63348543,177.51,177.46,45.58]
[1747898248272,22.19337633,177.47,177.46,45.58]
[1747898248648,5.63348543,177.51,177.46,45.58]
[1747898248854,22.19337633,177.48,177.46,45.58]
[1747898249555,5.63348543,177.51,177.46,45.58]
[1747898249754,22.19337633,177.47,177.46,45.58]
[1747898250156,22.19337633,177.48,177.46,45.58]
[1747898250664,22.19337633,177.47,177.46,45.58]
[1747898250842,27.82754001,177.49,177.46,45.58]
[1747898251343,5.63316809,177.52,177.46,45.58]
[1747898251546,22.19337633,177.49,177.46,45.58]
[1747898253073,22.19337633,177.49,177.46,45.58]
[1747898253371,27.82775917,177.49,177.46,45.58]
[1747898253772,22.19337633,177.48,177.46,45.58]
[1747898254277,5.63316809,177.52,177.46,45.58]
[1747898254570,22.19337633,177.51,177.46,45.58]
[1747898255068,22.19337633,177.5,177.46,45.58]
[1747898255674,27.82720259,177.5,177.46,45.58]
[1747898256286,5.63382626,177.5,177.46,45.58]
[1747898256581,27.82720259,177.5,177.46,45.58]
[1747898256762,5.63382626,177.5,177.46,45.58]
[1747898257287,22.19337633,177.52,177.46,45.58]
[1747898257664,22.19337633,177.51,177.46,45.58]
[1747898258201,22.19337633,177.51,177.46,71.58]
[1747898259087,5.63316809,177.52,177.46,71.58]
[1747898259385,22.19337633,177.55,177.5,26.0]
[1747898259565,5.63348543,177.51,177.48,26.0]
[1747898259764,27.82686176,177.51,177.47,33.8]
[1747898259982,22.19337633,177.53,177.47,33.8]
[1747898260155,5.63158191,177.57,177.47,33.8]
[1747898260156,22.19337633,177.55,177.48,18.64964886]
[1747898260362,22.19337633,177.56,177.48,18.64964886]
[1747898260681,22.19337633,177.53,177.47,33.8]
[1747898260889,22.19337633,177.52,177.47,33.8]
[1747898261268,22.19337633,177.52,177.47,39.43460427]
[1747898261890,14.07656142,177.52,177.47,33.8]
[1747898262257,14.07656142,177.53,177.47,39.43465464]
[1747898262566,14.07656142,177.53,177.47,33.8]
[1747898262766,14.07656142,177.52,177.47,33.8]
[1747898263191,14.07656142,177.52,177.47,39.43469356]
[1747898264762,5.6332194,177.52,177.46,71.58]
[1747898264962,14.07656142,177.5,177.46,71.58]
[1747898265159,5.6332194,177.52,177.46,71.58]
[1747898265383,14.07656142,177.5,177.46,71.58]
[1747898265585,14.07656142,177.49,177.46,45.58]
[1747898265768,5.6332194,177.52,177.46,45.58]
[1747898265969,14.07656142,177.5,177.46,45.58]
[1747898266165,19.71066675,177.5,177.46,45.58]
[1747898267298,14.07656142,177.49,177.46,45.58]
[1747898267497,5.63410533,177.5,177.46,45.58]
[1747898267994,14.07656142,177.49,177.46,45.58]
[1747898268502,5.63443768,177.48,177.46,45.58]
[1747898268998,14.07656142,177.47,177.44,5.47874848]
[1747898269179,14.07656142,177.45,177.44,5.47874848]
[1747898269378,19.72053188,177.48,177.44,5.47874848]
[1747898269578,14.07656142,177.45,177.44,5.47874848]
[1747898270107,19.72053188,177.48,177.44,5.47874848]
[1747898270395,14.07656142,177.45,177.44,5.47874848]
[1747898270910,19.71195167,177.45,177.44,5.47874848]
[1747898272075,27.93195167,177.45,177.37,26.0]
[1747898272277,14.07656142,177.4,177.37,26.0]
[1747898273077,19.72497745,177.44,177.37,26.0]
[1747898273393,14.07656142,177.4,177.37,26.0]
[1747898274388,14.07656142,177.38,177.33,50.51913066]
[1747898274584,14.07656142,177.37,177.33,44.88]
[1747898274789,14.07656142,177.37,177.36,26.0]
[1747898275399,5.63736294,177.39,177.36,26.0]
[1747898275605,14.07656142,177.39,177.36,26.0]
[1747898275899,8.22,177.45,177.37,26.0]
[1747898276101,14.07656142,177.46,177.39,26.0]
[1747898276474,14.07656142,177.48,177.39,26.0]
[1747898276679,14.07656142,177.47,177.39,26.0]
[1747898276894,5.63412023,177.49,177.43,26.0]
[1747898276895,14.07656142,177.45,177.43,26.0]
[1747898277098,14.07656142,177.45,177.37,5.637932]
[1747898277289,14.07656142,177.44,177.39,26.0]
[1747898277604,14.07656142,177.46,177.39,26.0]
[1747898278400,14.07656142,177.45,177.39,26.0]
[1747898278985,14.07656142,177.45,177.4,26.0]
[1747898279679,14.07656142,177.44,177.4,26.0]
[1747898279880,14.07656142,177.41,177.33,44.88]
[1747898280112,14.07656142,177.37,177.33,44.88]
[1747898280308,7.6635,177.42,177.33,44.88]
[1747898280486,14.07656142,177.4,177.36,26.0]
[1747898280688,14.07656142,177.39,177.36,26.0]
[1747898280897,14.07656142,177.38,177.36,26.0]
[1747898281616,14.07656142,177.37,177.33,44.88]
[1747898281782,22.22607331,177.36,177.31,83.0]
[1747898282121,22.22607331,177.34,177.29,5.64040447]
[1747898282292,22.22607331,177.34,177.32,26.0]
[1747898282487,19.73066683,177.39,177.28,216.50071]
[1747898282698,22.22607331,177.34,177.29,26.0]
[1747898282904,27.86502341,177.34,177.29,26.0]
[1747898283106,22.22607331,177.33,177.28,5.64076155]
[1747898283406,22.22607331,177.35,177.29,26.0]
[1747898283596,22.22607331,177.35,177.31,26.0]
[1747898283802,22.22607331,177.33,177.31,26.0]
[1747898283995,22.22607331,177.32,177.31,26.0]
[1747898284307,22.22607331,177.32,177.27,54.47826604]
[1747898284620,19.73164956,177.38,177.27,54.47826604]
[1747898284621,22.22607331,177.3,177.27,54.47826604]
[1747898284904,22.22607331,177.3,177.27,9.57826604]
[1747898284905,22.22607331,177.28,177.27,9.57826604]
[1747898285094,22.22607331,177.29,177.27,9.57826604]
[1747898285623,22.22607331,177.28,177.27,9.57826604]
[1747898286208,5.63992185,177.31,177.27,9.57826604]
[1747898286401,22.22607331,177.3,177.27,9.57826604]
[1747898287825,22.22607331,177.31,177.27,9.57826604]
[1747898288230,22.22607331,177.3,177.27,9.57826604]
[1747898289009,5.64034895,177.3,177.27,9.57826604]
[1747898289228,27.86642226,177.3,177.27,9.57826604]
[1747898290842,22.22607331,177.29,177.27,9.57826604]
[1747898291619,5.63991105,177.31,177.27,9.57826604]
[1747898291929,22.22607331,177.29,177.27,9.57826604]
[1747898293107,22.22607331,177.28,177.27,9.57826604]
[1747898293314,5.63991105,177.31,177.21,50.56294334]
[1747898293513,22.22607331,177.28,177.21,5.64294334]
[1747898293817,22.22607331,177.28,177.21,31.64294334]
[1747898294023,5.64111242,177.27,177.21,31.64294334]
[1747898294539,22.22607331,177.24,177.17,44.94]
[1747898295042,22.22607331,177.24,177.18,26.0]
[1747898295252,22.22607331,177.25,177.18,26.0]
[1747898295411,22.22607331,177.25,177.2,26.0]
[1747898296623,5.64206725,177.24,177.2,26.0]
[1747898296822,27.86792011,177.25,177.2,26.0]
[1747898297116,1.6656,177.32,177.2,31.64330482]
[1747898297322,22.22607331,177.3,177.2,31.64330482]
[1747898297706,22.22607331,177.29,177.2,31.64330482]
[1747898297936,27.86591313,177.31,177.21,18.64964886]
[1747898298515,22.22607331,177.3,177.2,79.59165696]
[1747898298715,5.64079422,177.28,177.2,65.48330482]
[1747898299336,27.86686753,177.28,177.2,65.48330482]
[1747898299940,5.64143066,177.26,177.2,65.48330482]
[1747898300239,27.86726336,177.27,177.2,65.48330482]
[1747898301045,5.64119005,177.27,177.2,65.48330482]
[1747898301226,22.22607331,177.27,177.2,65.48330482]
[1747898301855,5.64111242,177.27,177.2,65.48330482]
[1747898302050,5.64111242,177.27,177.2,31.64330482]
[1747898302230,5.64111242,177.27,177.2,26.0]
[1747898302727,1.6656,177.32,177.21,20.40681043]
[1747898303050,11.73113902,177.37,177.29,26.0]
[1747898303348,5.63733591,177.39,177.29,26.0]
[1747898303552,5.63733591,177.39,177.31,26.0]
[1747898303851,19.73688819,177.39,177.31,26.0]
[1747898304057,5.63733591,177.39,177.31,26.0]
[1747898304232,6.5527,177.45,177.35,26.0]
[1747898304554,12.18809025,177.45,177.35,26.0]
[1747898304758,26.28764253,177.45,177.37,26.0]
[1747898305362,12.18809025,177.45,177.37,26.0]
[1747898305653,34.39312308,177.45,177.37,26.0]
[1747898306257,5.63539025,177.45,177.37,31.63767959]
[1747898306439,27.84042308,177.45,177.37,31.63767959]
[1747898306639,5.63539025,177.45,177.37,31.63767959]
[1747898306940,5.63539025,177.45,177.41,22.2027911]
[1747898307347,5.63539025,177.45,177.42,22.2027911]
[1747898307645,5.63488961,177.47,177.38,5.63752754]
[1747898307846,22.2027911,177.46,177.37,24.28757606]
[1747898308052,22.2027911,177.46,177.41,22.2027911]
[1747898308636,11.82541149,177.48,177.43,22.2027911]
[1747898308842,11.82541149,177.48,177.44,22.2027911]
[1747898309035,11.82541149,177.48,177.39,18.64964886]
[1747898309262,11.82541149,177.48,177.43,22.2027911]
[1747898309565,48.11429679,177.48,177.43,22.2027911]
[1747898309768,25.91150569,177.48,177.38,26.0]
[1747898309946,48.11429679,177.48,177.43,22.2027911]
[1747898310145,22.2027911,177.47,177.42,22.2027911]
[1747898310438,22.2027911,177.44,177.38,22.2027911]
[1747898310639,22.2027911,177.39,177.34,22.2027911]
[1747898310844,22.2027911,177.39,177.32,44.94]
[1747898311051,22.2027911,177.37,177.32,44.94]
[1747898311239,5.63824988,177.36,177.32,67.1427911]
[1747898311457,5.63824988,177.36,177.26,5.6411936]
[1747898311677,5.63824988,177.36,177.31,22.2027911]
[1747898312747,14.09562471,177.36,177.31,22.2027911]
[1747898312945,5.637932,177.37,177.31,22.2027911]
[1747898313165,5.637932,177.37,177.32,22.2027911]
[1747898313569,27.8407231,177.37,177.32,22.2027911]
[1747898314567,5.637932,177.37,177.32,22.2027911]
[1747898315562,5.637932,177.37,177.28,5.64061165]
[1747898315772,5.637932,177.37,177.31,22.2027911]
[1747898316664,22.2027911,177.36,177.31,22.2027911]
[1747898317469,19.73276201,177.37,177.3,22.2027911]
[1747898317648,22.2027911,177.35,177.3,22.2027911]
[1747898317849,22.2027911,177.36,177.3,22.2027911]
[1747898318868,22.2027911,177.33,177.27,22.2027911]
[1747898319082,22.2027911,177.31,177.21,5.6430224]
[1747898319251,22.2027911,177.29,177.24,22.2027911]
[1747898319445,22.2027911,177.29,177.23,22.2027911]
[1747898319872,22.2027911,177.27,177.19,78.74]
[1747898320056,22.2027911,177.25,177.19,44.92]
[1747898320374,6.6299,177.3,177.2,22.2027911]
[1747898320671,22.2027911,177.28,177.23,22.2027911]
[1747898320880,27.84379228,177.28,177.23,22.2027911]
[1747898321052,27.84379228,177.28,177.2,26.0]
[1747898321053,27.84379228,177.28,177.22,22.2027911]
[1747898321781,22.2027911,177.26,177.21,22.2027911]
[1747898321991,19.74298673,177.28,177.2,22.2027911]
[1747898322272,22.2027911,177.26,177.2,22.2027911]
[1747898322470,22.2027911,177.24,177.18,26.0]
[1747898322658,22.2027911,177.23,177.17,26.0]
[1747898322869,22.2027911,177.21,177.13,44.92]
[1747898323048,22.2027911,177.18,177.13,22.2027911]
[1747898323259,6.3181,177.2,177.13,26.0]
[1747898323453,22.2027911,177.18,177.13,26.0]
[1747898323680,22.2027911,177.17,177.11,9.58843518]
[1747898323907,6.3181,177.2,177.11,9.58843518]
[1747898323908,22.2027911,177.15,177.11,9.58843518]
[1747898324071,22.2027911,177.13,177.07,22.2027911]
[1747898324466,22.2027911,177.11,177.06,44.92]
[1747898324670,1.6199,177.15,177.07,22.2027911]
[1747898324875,5.64615227,177.12,177.08,22.2027911]
[1747898325567,5.64615227,177.12,177.09,22.2027911]
[1747898325780,5.64615227,177.12,177.08,22.2027911]
[1747898326291,27.84894337,177.12,177.05,26.0]
[1747898326494,27.84894337,177.12,177.07,22.2027911]
[1747898326986,27.84894337,177.12,177.07,48.2027911]
[1747898327189,22.2027911,177.1,177.02,33.84]
[1747898327376,22.2027911,177.1,177.04,22.2027911]
[1747898327684,22.2027911,177.09,177.04,26.0]
[1747898327866,22.2027911,177.08,176.98,216.71032786]
[1747898328074,6.4437,177.09,176.98,5.65032786]
[1747898328384,28.6464911,177.09,177.04,22.2027911]
[1747898328885,5.64716512,177.08,177.04,22.2027911]
[1747898329099,27.84804344,177.14,177.07,22.2027911]
[1747898329403,5.64525234,177.14,177.09,22.2027911]
[1747898329574,5.64525234,177.14,177.1,22.2027911]
[1747898329981,5.64525234,177.14,177.11,22.2027911]
[1747898330170,5.64525234,177.14,177.12,22.2027911]
[1747898330699,5.64525234,177.14,177.11,22.2027911]
[1747898331299,5.64525234,177.14,177.1,22.2027911]
[1747898331476,5.64525234,177.14,177.11,22.2027911]
[1747898331807,12.03870056,177.15,177.12,22.2027911]
[1747898332482,12.03870056,177.15,177.11,22.2027911]
[1747898334078,12.03870056,177.15,177.12,22.2027911]
[1747898334274,12.03870056,177.15,177.05,26.0]
[1747898334597,12.03870056,177.15,177.1,22.2027911]
[1747898334788,12.03870056,177.15,177.11,22.2027911]
[1747898334994,48.35382584,177.15,177.05,5.64809552]
[1747898335203,48.35382584,177.15,177.1,22.2027911]
[1747898335876,48.35382584,177.15,177.05,31.64808829]
[1747898336081,48.35382584,177.15,177.04,26.0]
[1747898336082,22.2027911,177.14,177.09,22.2027911]
[1747898336281,48.35382584,177.15,177.09,22.2027911]
[1747898336479,22.2027911,177.13,177.03,33.86]
[1747898336687,22.2027911,177.12,177.07,22.2027911]
[1747898337196,5.64620857,177.11,177.06,22.2027911]
[1747898337696,5.64620857,177.11,177.07,22.2027911]
[1747898338880,5.64620857,177.11,177.03,39.50871048]
[1747898338881,5.64620857,177.11,177.08,22.2027911]
[1747898339521,5.64620857,177.11,177.03,39.50873315]
[1747898339680,5.64620857,177.11,177.07,22.2027911]
[1747898339887,41.96452109,177.11,177.06,22.2027911]
[1747898340097,19.76172999,177.11,177.06,22.2027911]
[1747898340477,19.76172999,177.11,177.07,22.2027911]
[1747898341100,5.64620857,177.11,177.08,22.2027911]
[1747898341308,6.89362186,177.17,177.1,22.2027911]
[1747898341488,6.89362186,177.17,177.15,22.2027911]
[1747898341927,6.89362186,177.17,177.14,22.2027911]
[1747898342302,5.64461503,177.16,177.14,22.2027911]
[1747898342507,5.64461503,177.16,177.15,22.2027911]
[1747898342725,6.89362186,177.17,177.11,26.0]
[1747898343025,12.53796375,177.17,177.09,83.0]
[1747898343305,26.64870484,177.17,177.13,22.2027911]
[1747898343719,12.53796375,177.17,177.15,22.2027911]
[1747898343881,6.89362186,177.17,177.15,22.2027911]
[1747898344088,6.89362186,177.17,177.16,22.2027911]
[1747898344386,12.53791829,177.17,177.16,22.2027911]
[1747898344605,12.53791829,177.17,177.08,31.64708286]
[1747898344918,48.85145048,177.17,177.12,22.2027911]
[1747898345419,48.85145048,177.17,177.11,22.2027911]
[1747898345620,22.2027911,177.14,177.02,51.46560224]
[1747898345823,0.14216157,177.16,177.08,22.2027911]
[1747898346006,0.14216157,177.16,177.02,49.86900224]
[1747898346007,22.2027911,177.14,177.09,22.2027911]
[1747898346419,22.2027911,177.14,177.08,22.2027911]
[1747898347121,19.75949866,177.13,177.08,22.2027911]
[1747898348321,19.75949866,177.13,177.09,22.2027911]
[1747898348510,5.64557104,177.13,177.09,22.2027911]
[1747898348716,5.64557104,177.13,177.08,22.2027911]
[1747898348924,41.96228976,177.13,177.02,44.22]
[1747898349113,41.96228976,177.13,177.07,22.2027911]
[1747898349311,22.2027911,177.12,177.07,22.2027911]
[1747898349507,41.96228976,177.13,177.07,22.2027911]
[1747898349899,41.96228976,177.13,177.03,26.0]
[1747898351510,19.76284584,177.1,177.06,22.2027911]
[1747898352709,22.2027911,177.07,176.97,214.95461325]
[1747898353022,34.00216157,177.09,176.97,214.95461325]
[1747898353023,5.64716512,177.08,177.04,22.2027911]
[1747898354311,5.64716512,177.08,177.05,22.2027911]
[1747898354514,5.64588979,177.12,177.07,22.2027911]
[1747898354728,5.64588979,177.12,177.04,26.0]
[1747898354729,5.64588979,177.12,177.1,22.2027911]
[1747898354927,41.96340537,177.12,177.07,22.2027911]
[1747898355128,22.2027911,177.11,177.02,70.24]
[1747898355336,19.76061427,177.12,177.05,22.2027911]
[1747898355546,22.2027911,177.09,177.02,44.24]
[1747898355714,22.2027911,177.07,176.99,26.0]
[1747898355915,22.2027911,177.06,177.01,22.2027911]
[1747898356324,18.64964886,177.1,177.01,22.2027911]
[1747898356520,22.2027911,177.06,177.01,22.2027911]
[1747898357244,5.64812199,177.05,177.01,22.2027911]
[1747898357627,41.97121808,177.05,176.99,22.2027911]
[1747898358339,22.2027911,177.04,176.98,22.2027911]
[1747898359020,22.2027911,177.03,176.97,29.65461325]
[1747898359217,5.6490792,177.02,176.98,22.2027911]
[1747898359849,32.0002,177.05,176.99,22.2027911]
[1747898360016,26.0,177.05,177.01,22.2027911]
[1747898360354,26.0,177.05,177.0,22.2027911]
[1747898360723,48.2027911,177.05,177.0,22.2027911]
[1747898360928,53.85097409,177.05,177.0,22.2027911]
[1747898361347,22.2027911,177.04,176.97,3.65461325]
[1747898361537,22.2027911,177.04,176.99,22.2027911]
[1747898361856,53.85097409,177.05,177.0,22.2027911]
[1747898362445,26.0,177.05,177.01,22.2027911]
[1747898363251,22.2027911,177.04,176.97,3.65461325]
[1747898363438,22.2027911,177.0,176.97,3.65461325]
[1747898363748,22.2027911,177.0,176.94,22.2027911]
[1747898363945,22.2027911,177.0,176.95,22.2027911]
[1747898364335,22.2027911,177.0,176.94,22.2027911]
[1747898364545,5.65003672,176.99,176.94,22.2027911]
[1747898364934,5.65003672,176.99,176.92,48.8321674]
[1747898365132,5.65003672,176.99,176.94,22.2027911]
[1747898365454,27.85282782,176.99,176.94,22.2027911]
[1747898365657,27.85282782,176.99,176.92,5.65223807]
[1747898365954,27.85282782,176.99,176.94,22.2027911]
[1747898366153,27.85282782,176.99,176.9,5.65260343]
[1747898366326,27.85282782,176.99,176.94,22.2027911]
[1747898367025,27.85282782,176.99,176.92,5.65223005]
[1747898367228,27.85282782,176.99,176.94,22.2027911]
[1747898367853,26.0,176.98,176.94,22.2027911]
[1747898368549,26.0,176.98,176.95,22.2027911]
[1747898369031,26.0,176.98,176.94,22.2027911]
[1747898369839,5.65067525,176.97,176.94,22.2027911]
[1747898371952,5.65067525,176.97,176.92,22.2027911]
[1747898372132,5.65067525,176.97,176.87,69.2]
[1747898372133,41.98015448,176.97,176.91,22.2027911]
[1747898372457,22.2027911,176.96,176.9,22.2027911]
[1747898372957,22.2027911,176.96,176.87,69.2]
[1747898372958,22.2027911,176.93,176.88,22.2027911]
[1747898373471,22.2027911,176.93,176.83,5.65513027]
[1747898373632,22.2027911,176.92,176.82,67.50510495]
[1747898373839,5.65259171,176.91,176.87,22.2027911]
[1747898374452,5.65259171,176.91,176.82,67.50510495]
[1747898374647,19.78407099,176.91,176.87,22.2027911]
[1747898374957,19.78407099,176.91,176.82,67.50510495]
[1747898375363,19.78407099,176.91,176.87,22.2027911]
[1747898375957,5.65259171,176.91,176.88,22.2027911]
[1747898376968,5.65259171,176.91,176.82,61.84964886]
[1747898377273,5.65259171,176.91,176.87,22.2027911]
[1747898377458,5.65259171,176.91,176.82,43.2]
[1747898377649,5.65259171,176.91,176.87,22.2027911]
[1747898378369,0.14216157,176.96,176.83,5.65510216]
[1747898378370,5.65163332,176.94,176.9,22.2027911]